bitfinex-derivatives/quotes_ETHF0:USTF0_20241022
["timestamp","ask_amount","ask_price","bid_price","bid_amount"]
[1729610808918,6.1379,2618.7,2618.6,0.38205]
[1729610809521,6.1379,2618.7,2618.6,3.58985]
[1729610812427,2.3195,2618.7,2618.6,3.58985]
[1729610814330,2.3523,2618.9,2618.6,6.1878]
[1729610814535,2.3523,2618.9,2618.8,0.38202]
[1729610815332,1.50974,2618.9,2618.8,0.38202]
[1729610816054,1.50974,2618.9,2618.6,12.12123]
[1729610816055,0.18801434,2619.3,2619.2,0.38196]
[1729610816332,2.4193,2619.5,2619.4,0.38193]
[1729610816642,6.2369,2619.5,2619.4,3.58973]
[1729610816935,2.4193,2619.5,2619.4,0.38193]
[1729610817128,5.3341,2619.8,2619.7,0.38189]
[1729610817334,5.5230895,2619.8,2619.7,0.38189]
[1729610817535,9.3398895,2619.8,2619.7,0.38189]
[1729610817730,9.67800328,2619.8,2619.7,0.38189]
[1729610818428,12.04230328,2619.8,2619.7,0.38189]
[1729610821737,9.06230328,2619.8,2619.7,0.38189]
[1729610822341,9.44418328,2619.8,2619.7,0.38189]
[1729610822533,9.06230328,2619.8,2619.7,0.38189]
[1729610822939,12.27010328,2619.8,2619.3,0.95485]
[1729610823137,2.98,2619.7,2619.6,0.38189]
[1729610823445,6.7976,2619.7,2619.6,0.38189]
[1729610824042,6.7976,2619.7,2619.6,0.3819]
[1729610825245,5.24550328,2619.8,2619.7,0.38189]
[1729610825442,2.5532895,2619.8,2619.7,0.38189]
[1729610825632,2.3643,2619.8,2619.7,0.38189]
[1729610825834,0.19399509,2620.1,2620.0,0.38185]
[1729610826142,2.4265,2620.2,2620.1,0.38183]
[1729610826337,2.4265,2620.2,2620.1,3.58963]
[1729610828036,0.38175,2620.7,2620.1,3.2078]
[1729610828244,0.38175,2620.7,2620.6,0.38176]
[1729610828740,0.38175,2620.7,2620.2,0.95453]
[1729610828741,3.816,2620.7,2620.2,0.95453]
[1729610829044,5.4206,2620.8,2620.5,0.38176]
[1729610829249,5.4206,2620.8,2620.2,0.95453]
[1729610829250,0.38175,2620.7,2620.6,0.38174]
[1729610829547,5.80233,2620.8,2620.7,0.38174]
[1729610830042,9.61833,2620.8,2620.7,0.38174]
[1729610830747,9.2366,2620.8,2620.7,0.38174]
[1729610831058,7.9055,2621.0,2620.9,0.38172]
[1729610831346,7.9055,2621.0,2620.5,0.95441]
[1729610831347,0.38173,2620.9,2620.8,0.38172]
[1729610831544,0.38173,2620.9,2620.4,2.4988]
[1729610831545,0.38174,2620.7,2620.3,0.9545]
[1729610831739,0.38174,2620.7,2620.6,0.38175]
[1729610832043,2.5557,2620.8,2620.7,0.38174]
[1729610832044,2.93744,2620.8,2620.7,0.38174]
[1729610832644,6.75344,2620.8,2620.7,0.38174]
[1729610834142,6.75344,2620.8,2620.1,2.4988]
[1729610834143,0.38175,2620.7,2620.4,0.38178]
[1729610834337,2.98,2620.5,2619.9,3.2078]
[1729610834538,6.1878,2620.7,2620.2,0.95455]
[1729610834744,2.5557,2620.8,2620.4,4.16228]
[1729610835043,0.33905489,2620.9,2620.8,0.38173]
[1729610835346,2.98,2621.1,2621.0,0.3817]
[1729610836144,0.32798116,2621.1,2621.0,0.3817]
[1729610836444,0.32798116,2621.1,2620.8,3.2078]
[1729610836445,8.0678,2621.4,2620.9,0.95428]
[1729610836652,8.78123105,2621.4,2621.3,0.38166]
[1729610837236,8.45629105,2621.4,2621.3,0.38166]
[1729610837645,3.2078,2621.4,2621.3,0.38166]
[1729610837945,3.31016771,2621.7,2621.1,5.6032]
[1729610838255,0.38164,2621.4,2621.3,0.38165]
[1729610838558,2.98,2621.5,2621.1,3.58949]
[1729610838559,0.38167,2621.2,2621.1,3.58949]
[1729610838847,0.38167,2621.2,2621.1,3.2078]
[1729610839053,4.19687,2621.2,2621.1,3.58949]
[1729610839250,3.8152,2621.2,2621.1,3.58949]
[1729610839845,8.18436,2621.3,2621.2,0.38167]
[1729610840348,11.99956,2621.3,2621.2,0.38167]
[1729610840547,8.6379,2621.3,2621.2,0.38167]
[1729610840746,9.01956,2621.3,2621.2,0.38167]
[1729610841146,8.6379,2621.3,2621.1,3.2078]
[1729610841342,9.01957,2621.3,2621.2,0.38167]
[1729610841552,8.6379,2621.3,2620.8,8.1557]
[1729610841851,3.36171,2621.0,2620.9,0.38172]
[1729610842045,0.57362691,2621.0,2620.9,0.38172]
[1729610842241,0.19191691,2621.0,2620.9,0.38172]
[1729610842450,0.3817,2621.1,2621.0,0.3817]
[1729610842654,0.18677952,2621.1,2620.4,10.6437]
[1729610842859,0.38172,2620.9,2620.8,0.38172]
[1729610843152,0.38172,2620.9,2620.5,0.95444]
[1729610843153,0.57116325,2621.0,2620.9,0.38172]
[1729610843550,4.38636325,2621.0,2620.9,0.38172]
[1729610844848,0.38173,2620.8,2620.7,3.58954]
[1729610845558,0.57115325,2621.0,2620.9,0.38172]
[1729610845748,0.38172,2620.9,2620.8,0.38172]
[1729610845955,0.18945325,2621.0,2620.7,3.2078]
[1729610846158,0.38171,2621.0,2620.9,0.38172]
[1729610846354,0.57488469,2621.0,2620.9,0.38172]
[1729610847261,5.20437,2621.3,2621.2,0.38167]
[1729610847449,8.6379,2621.3,2621.2,0.38167]
[1729610847660,2.89506,2621.3,2621.2,0.38167]
[1729610848353,2.5134,2621.3,2621.2,0.38167]
[1729610848753,3.22803739,2621.3,2621.2,0.38167]
[1729610849452,0.38168,2621.2,2621.1,0.38168]
[1729610850056,6.7952,2621.2,2620.7,3.2078]
[1729610850350,6.7952,2621.2,2620.8,0.38171]
[1729610850351,0.38172,2620.9,2620.8,0.38171]
[1729610850550,0.1931938,2621.1,2620.7,3.2078]
[1729610850857,0.38168,2621.2,2621.1,0.38167]
[1729610851165,0.3817,2621.1,2621.0,0.38169]
[1729610851555,2.98,2621.2,2620.7,4.16216]
[1729610851871,0.38169,2621.2,2621.1,0.38169]
[1729610853664,0.3817,2621.1,2621.0,0.38169]
[1729610853860,0.38171,2621.0,2620.9,0.3817]
[1729610854054,0.3817,2621.1,2621.0,0.38169]
[1729610855264,0.38173,2620.9,2620.8,0.38172]
[1729610855754,0.38173,2620.8,2620.7,3.58953]
[1729610856667,0.38173,2620.9,2620.8,0.38172]
[1729610858169,0.3817,2621.1,2621.0,0.38169]
[1729610859061,2.5346,2621.3,2620.8,0.95433]
[1729610859264,3.25082997,2621.3,2621.2,0.38167]
[1729610860762,2.86916997,2621.3,2620.8,0.95433]
[1729610861070,0.38171,2621.0,2620.9,0.38169]
[1729610861266,0.38169,2621.1,2621.0,0.38168]
[1729610861967,0.38168,2621.2,2621.1,0.38167]
[1729610862865,3.58944,2621.5,2621.4,0.38164]
[1729610863060,3.2078,2621.5,2621.4,0.38164]
[1729610863762,3.58943,2621.5,2621.4,0.38164]
[1729610864264,3.2078,2621.5,2621.4,0.38164]
[1729610864566,0.3816,2621.7,2621.6,0.3816]
[1729610864774,3.92760863,2621.8,2621.7,0.3816]
[1729610865263,0.33820863,2621.8,2621.3,3.2078]
[1729610865459,0.38164,2621.5,2621.4,0.38162]
[1729610866261,0.38161,2621.7,2621.6,0.3816]
[1729610866666,3.93394,2621.9,2621.3,3.2078]
[1729610866868,0.38163,2621.6,2621.5,0.38161]
[1729610869262,1.04601807,2621.6,2621.5,0.38161]
[1729610869868,1.04601807,2621.6,2621.3,3.2078]
[1729610869869,0.38164,2621.5,2621.4,0.38163]
[1729610870366,1.04633177,2621.5,2621.4,0.38163]
[1729610871861,0.66469177,2621.5,2621.4,0.38163]
[1729610872261,0.38157,2621.9,2621.4,2.98]
[1729610872468,0.66498427,2621.8,2621.6,0.95403]
[1729610872669,0.66498427,2621.7,2621.6,0.38161]
[1729610872875,0.38157,2621.9,2621.5,0.95408]
[1729610873165,0.66502911,2621.8,2621.7,0.3816]
[1729610874175,1.04660911,2621.8,2621.7,0.3816]
[1729610876476,0.38161,2621.7,2621.6,0.3816]
[1729610876664,1.04663911,2621.7,2621.6,0.3816]
[1729610879775,0.38161,2621.7,2621.6,0.3816]
[1729610880673,1.03448116,2621.7,2621.6,0.3816]
[1729610881479,0.65287116,2621.7,2621.6,0.3816]
[1729610881670,0.38159,2621.8,2621.7,0.3816]
[1729610881872,1.03492543,2621.8,2621.7,0.3816]
[1729610882069,4.84932543,2621.8,2621.7,0.3816]
[1729610882481,1.03492543,2621.8,2621.7,0.3816]
[1729610883780,0.65333543,2621.8,2621.7,0.3816]
[1729610884081,1.03491543,2621.8,2621.7,0.3816]
[1729610885181,0.38158,2621.9,2621.8,0.38157]
[1729610885481,1.03495795,2621.9,2621.8,0.38157]
[1729610891789,1.03494795,2621.9,2621.8,0.38157]
[1729610891988,0.65337795,2621.9,2621.8,0.38157]
[1729610892184,2.5551,2622.3,2622.2,0.38153]
[1729610892486,2.93661,2622.3,2622.2,0.38153]
[1729610892690,6.75021,2622.3,2622.2,0.38153]
[1729610893094,6.3687,2622.3,2622.2,0.38153]
[1729610893292,2.5551,2622.3,2622.2,0.38153]
[1729610894888,6.3687,2622.3,2621.9,3.2078]
[1729610895193,6.3687,2622.3,2622.1,0.38154]
[1729610895194,0.38154,2622.2,2622.1,0.38154]
[1729610895390,0.38154,2622.2,2621.9,3.2078]
[1729610895391,4.76743,2622.2,2621.6,3.2078]
[1729610895593,0.3816,2621.8,2621.7,0.38159]
[1729610896495,2.8267,2621.8,2621.7,0.38159]
[1729610896794,5.6529,2621.8,2621.2,3.2078]
[1729610896991,0.38162,2621.6,2621.5,0.38161]
[1729610897493,0.38161,2621.7,2621.6,0.3816]
[1729610897696,0.38163,2621.6,2621.5,0.38161]
[1729610898795,2.4451,2621.8,2621.3,0.95415]
[1729610899094,0.38164,2621.5,2621.4,0.38163]
[1729610900388,0.38162,2621.6,2621.5,0.38161]
[1729610900589,0.38164,2621.5,2621.4,0.38163]
[1729610901187,0.38162,2621.6,2621.5,0.38161]
[1729610901688,5.77263518,2621.8,2621.1,2.378]
[1729610901990,5.77263518,2621.8,2621.3,0.38165]
[1729610901991,0.38166,2621.4,2621.3,0.38165]
[1729610902196,0.38168,2621.2,2621.1,0.38167]
[1729610902391,0.63911969,2621.2,2621.1,0.38169]
[1729610902791,1.02078969,2621.2,2621.1,0.38169]
[1729610904500,0.63911969,2621.2,2621.1,0.38169]
[1729610905102,1.02078969,2621.2,2621.1,0.38169]
[1729610905892,1.02078969,2621.2,2621.0,3.2078]
[1729610905893,0.38169,2621.1,2621.0,3.58949]
[1729610906099,1.02080969,2621.1,2621.0,3.58949]
[1729610907395,1.02080969,2621.1,2621.0,3.2078]
[1729610907593,0.38174,2620.8,2620.7,0.38173]
[1729610907904,0.38174,2620.7,2620.6,3.2078]
[1729610908205,2.79874,2620.7,2620.6,3.2078]
[1729610908594,2.79874,2620.7,2620.6,3.58956]
[1729610909596,2.79874,2620.7,2620.6,3.2078]
[1729610910101,3.43743114,2620.7,2620.6,3.2078]
[1729610910706,7.53549349,2620.8,2620.6,3.58956]
[1729610910897,0.38174,2620.7,2620.6,3.58956]
[1729610911204,0.38174,2620.7,2620.6,3.2078]
[1729610911408,0.38174,2620.7,2620.6,3.58956]
[1729610911798,0.38174,2620.7,2620.6,3.2078]
[1729610912207,0.38174,2620.7,2620.6,3.58956]
[1729610912407,0.38174,2620.7,2620.6,3.2078]
[1729610913405,0.38174,2620.7,2620.6,3.58956]
[1729610913813,0.38174,2620.7,2620.6,3.2078]
[1729610914009,2.77314,2620.7,2620.6,3.2078]
[1729610914609,7.16177,2620.7,2620.2,7.9369]
[1729610914803,0.3818,2620.3,2620.2,3.2078]
[1729610915006,0.3818,2620.3,2620.2,3.58962]
[1729610921418,0.38184,2620.2,2620.1,0.38182]
[1729610921620,4.28820506,2620.5,2619.9,4.8636]
[1729610921817,0.38185,2620.1,2620.0,0.38183]
[1729610922215,0.95452,2620.3,2619.9,4.8636]
[1729610922412,0.38185,2620.0,2619.9,5.24545]
[1729610923817,0.38185,2620.0,2619.9,2.83595]
[1729610924018,0.38189,2619.8,2619.7,0.38188]
[1729610924218,0.38189,2619.7,2619.6,2.8483]
[1729610924518,0.38189,2619.7,2619.6,0.3819]
[1729610924715,0.56903748,2619.7,2619.6,0.3819]
[1729610925815,0.38189,2619.8,2619.7,0.38188]
[1729610929117,0.35019291,2620.0,2619.5,2.5436]
[1729610929320,0.38187,2619.9,2619.8,0.38186]
[1729610930612,0.38189,2619.8,2619.7,0.38188]
[1729610930818,0.38187,2619.9,2619.8,0.38186]
[1729610934615,0.38186,2620.0,2619.9,0.38185]
[1729610934814,0.33979217,2620.1,2620.0,0.38185]
[1729610935023,0.33979217,2620.1,2619.7,0.9547]
[1729610935024,4.8771,2620.2,2620.1,0.38183]
[1729610935325,5.25892,2620.2,2620.1,0.38183]
[1729610936025,2.5048,2620.2,2620.1,0.38183]
[1729610936825,3.2078,2620.3,2620.2,0.38182]
[1729610937326,3.5896,2620.3,2620.2,0.38182]
[1729610938824,0.38183,2620.2,2620.1,0.38182]
[1729610939023,3.36183,2620.2,2620.1,0.38182]
[1729610940331,3.36182,2620.2,2620.1,0.38182]
[1729610940721,2.98,2620.2,2620.1,0.38182]
[1729610941022,3.36182,2620.2,2620.1,0.38182]
[1729610941434,2.98,2620.2,2620.1,0.38182]
[1729610941734,3.36182,2620.2,2620.1,0.38182]
[1729610942022,5.38,2620.5,2620.0,6.6419]
[1729610942227,5.76178,2620.5,2620.4,0.38179]
[1729610944324,2.98,2620.5,2620.4,0.38179]
[1729610944525,3.36177,2620.5,2620.4,0.38179]
[1729610945231,8.48755,2620.7,2620.4,0.38179]
[1729610945530,8.1058,2620.7,2620.6,0.38176]
[1729610945728,2.98,2620.8,2620.6,0.38175]
[1729610945931,0.38176,2620.7,2620.6,0.38175]
[1729610947430,3.36174,2620.8,2620.7,0.38174]
[1729610950329,0.61065709,2620.8,2620.5,3.34632]
[1729610950534,2.73528509,2621.0,2620.6,0.95439]
[1729610950729,2.73528509,2621.0,2620.9,0.38172]
[1729610951231,3.3460576,2621.0,2620.9,0.38172]
[1729610952029,2.73528509,2621.0,2620.9,0.38172]
[1729610952223,3.11698509,2621.0,2620.9,0.38172]
[1729610952827,2.73528509,2621.0,2620.9,0.38172]
[1729610953535,3.11698509,2621.0,2620.9,0.38172]
[1729610954135,3.72797219,2621.0,2620.9,0.38172]
[1729610956636,0.38173,2620.9,2620.8,0.38172]
[1729610956832,3.9727171,2620.9,2620.8,0.38172]
[1729610957539,3.5909871,2620.9,2620.8,0.38172]
[1729610957836,3.97261037,2620.9,2620.8,0.38172]
[1729610958038,3.36172,2620.9,2620.8,0.38172]
[1729610958243,1.76172,2620.9,2620.8,0.38172]
[1729610958941,3.14172,2620.9,2620.8,0.38172]
[1729610959139,3.75269788,2620.9,2620.8,0.38172]
[1729610959834,3.37097788,2620.9,2620.8,0.38172]
[1729610960035,2.37269788,2620.9,2620.8,0.38172]
[1729610960440,3.75269788,2620.9,2620.8,0.38172]
[1729610960837,2.37269788,2620.9,2620.8,0.38172]
[1729610961141,1.76172,2620.9,2620.8,0.38172]
[1729610961940,1.38,2620.9,2620.8,0.38172]
[1729610962442,1.76172,2620.9,2620.8,0.38172]
[1729610962842,0.38176,2620.7,2620.6,0.38173]
[1729610963047,1.76176,2620.7,2620.6,0.38173]
[1729610963346,1.76174,2620.7,2620.6,0.38173]
[1729610963843,2.73528509,2621.0,2620.8,0.38173]
[1729610964139,3.3964933,2621.1,2620.8,0.38173]
[1729610964140,0.1886933,2621.1,2621.0,0.3817]
[1729610964336,2.3967,2621.2,2621.1,0.38169]
[1729610964533,3.7767,2621.2,2621.1,0.38169]
[1729610964734,4.15837,2621.2,2621.1,0.38169]
[1729610965140,3.7767,2621.2,2621.1,0.38169]
[1729610966044,2.77837,2621.2,2621.1,0.38169]
[1729610966246,5.3767,2621.2,2621.1,0.38169]
[1729610967039,5.75837,2621.2,2621.1,0.38169]
[1729610967237,5.3767,2621.2,2621.1,0.38169]
[1729610967437,5.75837,2621.2,2621.1,0.38169]
[1729610967934,5.3767,2621.2,2621.1,0.38169]
[1729610969641,5.75837,2621.2,2621.1,0.38169]
[1729610971847,0.95425,2621.1,2620.5,5.82874]
[1729610972046,3.55301547,2621.0,2620.9,0.3817]
[1729610973454,0.38175,2620.8,2620.7,0.38173]
[1729610974151,2.68945,2620.8,2620.7,0.38173]
[1729610974653,0.38175,2620.8,2620.7,0.38173]
[1729610975453,3.36175,2620.8,2620.7,0.38173]
[1729610978555,3.59051527,2620.8,2620.4,0.95446]
[1729610978754,2.98,2620.5,2620.2,5.79802]
[1729610978955,2.4791,2620.4,2620.3,0.38179]
[1729610982359,5.3474,2620.7,2620.6,0.38176]
[1729610982660,2.97832574,2620.7,2620.6,0.38176]
[1729610982859,0.61092574,2620.7,2620.6,0.38176]
[1729610983156,0.53368992,2621.0,2620.9,0.38172]
[1729610983157,3.03298992,2621.0,2620.9,0.38172]
[1729610983355,3.4920366,2621.0,2620.9,0.38172]
[1729610983557,3.1103366,2621.0,2620.9,0.38172]
[1729610983854,3.68778082,2621.0,2620.9,0.38172]
[1729610985458,3.30608082,2621.0,2620.9,0.38172]
[1729610986458,4.68608082,2621.0,2620.9,0.38172]
[1729610987059,5.06778082,2621.0,2620.9,0.38172]
[1729610987254,0.38174,2620.9,2620.8,0.38172]
[1729610987554,2.3727766,2620.9,2620.8,0.38172]
[1729610987754,6.1879766,2620.9,2620.8,0.38172]
[1729610992560,8.6020766,2620.9,2620.8,0.38172]
[1729610994064,8.2203366,2620.9,2620.5,0.95444]
[1729610994265,0.9927866,2620.8,2620.7,0.38173]
[1729610994661,0.38177,2620.6,2620.5,0.38175]
[1729610994861,0.6110366,2620.6,2620.4,0.38179]
[1729610995060,1.9910366,2620.5,2620.4,0.38179]
[1729610995258,0.6110366,2620.5,2620.4,1.76179]
[1729610995458,1.38,2620.7,2620.4,5.57779]
[1729610995763,2.79582,2620.9,2620.8,0.38173]
[1729610995959,3.40777862,2620.9,2620.8,0.38173]
[1729610996762,4.78777862,2620.9,2620.8,0.38173]
[1729610998162,4.40605862,2620.9,2620.8,0.38173]
[1729610998360,3.02605862,2620.9,2620.8,0.38173]
[1729610998570,4.40605862,2620.9,2620.8,0.38173]
[1729611000373,1.99195862,2620.9,2620.8,0.38173]
[1729611001064,2.509,2621.3,2620.8,8.403]
[1729611001270,1.38,2621.4,2621.2,1.38]
[1729611001580,2.89063,2621.5,2621.4,0.38164]
[1729611001874,3.889,2621.5,2621.4,0.38164]
[1729611002074,1.38,2621.5,2621.4,0.38164]
[1729611002668,7.83732897,2621.7,2621.3,7.4323]
[1729611002868,7.83732897,2621.7,2621.6,0.38161]
[1729611003076,6.45232897,2621.7,2621.6,0.38161]
[1729611003569,5.07232897,2621.7,2621.6,0.38161]
[1729611003763,3.7835,2621.7,2621.6,0.38161]
[1729611003968,4.1651,2621.7,2621.6,0.38161]
[1729611004267,3.7835,2621.7,2621.6,0.38161]
[1729611004866,6.274,2622.0,2621.6,0.38161]
[1729611004867,4.894,2622.0,2621.6,0.38161]
[1729611005072,4.9687,2622.0,2621.9,0.38157]
[1729611005277,8.11025,2622.0,2621.9,0.38157]
[1729611005479,7.7287,2622.0,2621.9,0.38157]
[1729611005868,6.3487,2622.0,2621.9,0.38157]
[1729611006182,2.76,2622.0,2621.9,0.38157]
[1729611006486,3.14155,2622.0,2621.9,0.38157]
[1729611006665,0.38158,2621.9,2621.8,0.38158]
[1729611006871,1.38,2621.9,2621.8,0.38158]
[1729611008373,3.36157,2621.9,2621.7,2.3462]
[1729611008569,4.973,2622.1,2621.7,2.3462]
[1729611008874,7.953,2622.1,2622.0,0.38155]
[1729611009070,8.33454,2622.1,2622.0,0.38155]
[1729611010375,0.3816,2621.7,2621.2,0.95418]
[1729611010571,0.38162,2621.6,2621.5,0.38162]
[1729611010967,2.491,2621.7,2621.6,0.38161]
[1729611011173,3.36159,2621.8,2621.7,0.3816]
[1729611011477,3.95823363,2621.8,2621.7,0.3816]
[1729611011672,3.36159,2621.8,2621.7,0.3816]
[1729611012176,0.38159,2621.8,2621.7,0.3816]
[1729611012678,0.38161,2621.7,2621.6,0.3816]
[1729611012880,0.38159,2621.8,2621.7,0.38158]
[1729611013480,0.38157,2621.9,2621.8,0.38157]
[1729611013776,3.21360307,2622.0,2621.9,0.38157]
[1729611014275,7.02720307,2622.0,2621.9,0.38157]
[1729611014886,7.24202069,2622.0,2621.6,5.98033]
[1729611015077,0.38158,2621.9,2621.8,0.38157]
[1729611015982,0.72260307,2622.0,2621.9,0.38157]
[1729611016378,4.53620307,2622.0,2621.9,0.38157]
[1729611017281,0.34104307,2622.0,2621.9,0.38157]
[1729611017480,0.38153,2622.2,2622.1,0.38153]
[1729611017987,5.89182,2622.3,2622.2,0.38153]
[1729611018183,6.48802026,2622.3,2622.2,0.38153]
[1729611018477,10.04480236,2622.3,2622.2,0.38153]
[1729611019073,9.66328236,2622.3,2621.9,2.3491]
[1729611019278,3.36155,2622.1,2622.0,0.38154]
[1729611020586,3.36154,2622.1,2622.0,0.38154]
[1729611021179,6.7936,2622.1,2621.4,3.2078]
[1729611021376,2.98,2621.5,2621.4,3.58944]
[1729611021590,3.36161,2621.7,2621.6,0.3816]
[1729611021883,2.98,2621.9,2621.4,0.9541]
[1729611022085,0.38158,2621.9,2621.8,0.38158]
[1729611022389,0.97748251,2621.9,2621.8,0.38158]
[1729611022581,4.19598,2621.9,2621.8,0.38158]
[1729611023189,0.97746059,2621.9,2621.8,0.38158]
[1729611023392,2.88537,2622.0,2621.9,0.38157]
[1729611023686,2.88537,2622.0,2621.6,0.95404]
[1729611023687,0.38159,2621.8,2621.7,0.38158]
[1729611024589,0.38159,2621.8,2621.5,3.30167]
[1729611024590,3.36159,2621.9,2621.8,0.38158]
[1729611024784,2.98,2621.9,2621.5,2.3476]
[1729611024986,0.38164,2621.5,2621.4,0.38163]
[1729611025488,2.92324,2621.5,2621.4,0.38163]
[1729611026287,2.5416,2621.5,2621.4,0.38163]
[1729611026690,3.93393,2621.9,2621.8,0.38158]
[1729611026691,3.36158,2621.9,2621.8,0.38158]
[1729611026894,3.36329398,2621.9,2621.8,0.38158]
[1729611027189,3.36328398,2621.9,2621.8,0.38158]
[1729611027784,3.2078,2622.2,2621.8,0.38158]
[1729611027985,6.56934,2622.2,2622.1,0.38154]
[1729611028386,6.1878,2622.2,2621.9,2.4208]
[1729611028584,0.38155,2622.1,2622.0,0.38154]
[1729611028883,0.38155,2622.1,2622.0,0.38155]
[1729611028884,3.36155,2622.1,2622.0,0.38155]
[1729611029911,0.38156,2622.0,2621.9,0.38155]
[1729611030191,0.38156,2622.0,2621.1,4.162]
[1729611030192,0.95393,2621.9,2621.1,4.162]
[1729611030382,0.95393,2621.9,2621.5,1.38]
[1729611030383,1.38,2621.6,2621.5,1.38]
[1729611030588,0.59602565,2621.8,2621.5,1.38]
[1729611030589,0.38158,2621.8,2621.7,0.38159]
[1729611030796,1.76158,2621.8,2621.7,0.38159]
[1729611031287,1.38,2621.8,2621.7,0.38159]
[1729611031485,0.38158,2621.9,2621.6,2.5195]
[1729611031797,3.55960983,2622.2,2622.1,0.38154]
[1729611031798,3.2078,2622.2,2622.1,0.38154]
[1729611032093,4.5878,2622.2,2622.1,0.38154]
[1729611032483,1.38,2622.2,2622.1,0.38154]
[1729611034390,2.78771,2622.4,2622.0,3.8647]
[1729611034391,0.38152,2622.3,2622.2,0.38151]
[1729611035095,0.38151,2622.4,2622.3,0.38151]
[1729611035787,6.72430507,2622.5,2622.0,5.89319]
[1729611035989,0.38151,2622.4,2622.3,0.3815]
[1729611036488,6.72430507,2622.5,2622.0,9.10099]
[1729611036690,0.38152,2622.3,2622.2,0.38152]
[1729611038596,6.72430507,2622.5,2622.2,0.38152]
[1729611038894,0.3815,2622.4,2622.2,0.38152]
[1729611039198,0.38151,2622.3,2622.2,0.38152]
[1729611039889,0.97778936,2622.4,2622.3,0.38151]
[1729611040398,0.59627936,2622.4,2622.3,0.38151]
[1729611040697,0.38153,2622.2,2622.1,0.38153]
[1729611040893,0.38151,2622.3,2622.0,4.9393]
[1729611041195,0.38152,2622.3,2622.2,0.38152]
[1729611041392,2.81892,2622.3,2622.2,0.38152]
[1729611041890,2.4374,2622.3,2622.2,0.38152]
[1729611042289,2.81891,2622.3,2622.2,0.38152]
[1729611042491,3.41521352,2622.3,2622.2,0.38152]
[1729611042694,2.81891,2622.3,2622.2,0.38152]
[1729611043400,3.41545737,2622.3,2622.2,0.38152]
[1729611043598,6.01394737,2622.3,2622.0,2.4847]
[1729611043788,0.38158,2621.8,2621.7,5.5982]
[1729611043995,3.36158,2621.8,2621.7,5.5982]
[1729611044202,3.95814825,2621.8,2621.7,5.5982]
[1729611044401,3.95814825,2621.8,2621.7,2.3904]
[1729611044589,3.95814825,2621.8,2621.7,2.772]
[1729611044992,0.97814825,2621.8,2621.7,2.772]
[1729611045192,0.59656825,2621.8,2621.7,2.772]
[1729611045504,0.59656825,2621.8,2620.8,0.0953]
[1729611045505,0.38172,2620.9,2620.8,0.0953]
[1729611045797,3.76687728,2620.9,2620.3,3.2078]
[1729611045990,3.36179,2620.4,2620.3,3.2078]
[1729611046195,3.95835825,2620.4,2620.3,3.2078]
[1729611046792,0.38182,2620.3,2619.9,2.70916]
[1729611046999,0.97838825,2620.2,2619.9,2.70915]
[1729611047301,0.5961479,2620.1,2619.9,2.70915]
[1729611047499,2.98,2620.2,2619.9,2.3273]
[1729611047807,3.36185,2620.0,2619.7,0.38188]
[1729611048095,0.59624201,2619.9,2619.7,0.38188]
[1729611048298,0.97811201,2619.9,2619.6,0.3819]
[1729611048599,0.38189,2619.8,2619.5,0.38192]
[1729611048795,0.38189,2619.8,2619.6,0.3819]
[1729611048997,2.98,2620.0,2619.4,4.8991]
[1729611049305,0.38187,2619.9,2619.7,0.38188]
[1729611049487,0.38186,2619.9,2619.7,0.38189]
[1729611049693,2.98,2620.0,2619.7,0.38189]
[1729611049694,0.38188,2619.8,2619.7,0.38189]
[1729611049893,0.38186,2619.9,2619.6,0.3819]
[1729611050192,0.38189,2619.8,2619.6,0.3819]
[1729611050395,0.38189,2619.7,2619.6,0.3819]
[1729611050602,0.38188,2619.8,2619.6,0.3819]
[1729611051397,0.38188,2619.8,2619.4,4.8991]
[1729611051595,0.38187,2619.9,2619.7,0.38188]
[1729611051795,2.98,2620.0,2619.4,4.8991]
[1729611051997,3.36185,2620.0,2619.8,0.38187]
[1729611052995,0.38187,2619.9,2619.7,0.38189]
[1729611053589,0.38187,2619.9,2619.8,0.38188]
[1729611053898,2.98,2620.0,2619.9,0.38186]
[1729611054497,2.5219,2620.1,2619.6,3.2078]
[1729611054696,2.5219,2620.1,2620.0,0.38185]
[1729611054999,2.5219,2620.1,2619.6,4.16255]
[1729611055000,6.52713123,2620.2,2620.1,0.38183]
[1729611055800,3.31933123,2620.2,2620.1,0.38183]
[1729611056103,3.31933123,2620.2,2620.0,0.38184]
[1729611056502,3.31933123,2620.2,2619.6,4.16255]
[1729611056800,3.31933123,2620.2,2620.0,0.38183]
[1729611057097,3.31933123,2620.2,2620.1,0.38183]
[1729611057308,3.31933123,2620.2,2620.0,0.38184]
[1729611057497,3.31933123,2620.2,2619.6,0.95475]
[1729611057698,3.31933123,2620.2,2620.1,0.38183]
[1729611058091,3.70116123,2620.2,2619.9,0.38185]
[1729611058298,3.70116123,2620.2,2620.0,0.38185]
[1729611058597,3.31933123,2620.2,2619.7,3.2078]
[1729611058797,0.38183,2620.1,2619.9,0.38185]
[1729611059001,2.98,2620.5,2619.7,3.2078]
[1729611059195,2.98,2620.5,2619.9,0.95464]
[1729611059501,2.98,2620.5,2620.4,0.38179]
[1729611060601,3.36177,2620.5,2620.4,0.38179]
[1729611060997,2.98,2620.5,2620.4,0.38179]
[1729611061305,3.56163722,2620.6,2620.5,0.38177]
[1729611061502,6.54163722,2620.6,2620.5,0.38177]
[1729611062405,6.54163722,2620.6,2620.0,4.8655]
[1729611062708,0.38185,2620.0,2619.8,0.38187]
[1729611063301,0.38185,2620.0,2619.5,9.09219]